[Event "Titled Tuesday Blitz December 06 Late 2022"]
[White "Kleiman, Jake"]
[Black "Petrovic, Aleksa"]
[WhiteFideId "2020041"]
[BlackFideId "967629"]
[WhiteElo "2611"]
[BlackElo "2230"]
[Result "1/2-1/2"]
[Round "09"]
[TimeControl "180+1"]
[Date "2022.12.06"]
[WhiteClock "0:00:05"]
[BlackClock "0:00:08"]

1. e4 {[%clk 0:02:57]}  c6 {[%clk 0:02:59]} 2. Nc3 {[%clk 0:02:56]}  d5 {[%clk 0:02:59]} 3. Nf3 {[%clk 0:02:57]}  Bg4 {[%clk 0:02:58]} 4. h3 {[%clk 0:02:56]}  Bh5 {[%clk 0:02:58]} 5. Be2 {[%clk 0:02:57]}  Nf6 {[%clk 0:02:57]} 6. Ne5 {[%clk 0:02:54]}  Bxe2 {[%clk 0:02:56]} 7. Qxe2 {[%clk 0:02:55]}  e6 {[%clk 0:02:53]} 8. O-O {[%clk 0:02:54]}  Nbd7 {[%clk 0:02:52]} 9. Nf3 {[%clk 0:02:51]}  Nxe4 {[%clk 0:02:51]} 10. Nxe4 {[%clk 0:02:51]}  dxe4 {[%clk 0:02:52]} 11. Qxe4 {[%clk 0:02:52]}  Nf6 {[%clk 0:02:52]} 12. Qe2 {[%clk 0:02:52]}  Be7 {[%clk 0:02:52]} 13. d4 {[%clk 0:02:53]}  O-O {[%clk 0:02:52]} 14. c4 {[%clk 0:02:54]}  Qa5 {[%clk 0:02:49]} 15. Bd2 {[%clk 0:02:53]}  Qa6 {[%clk 0:02:45]} 16. Rfe1 {[%clk 0:02:52]}  b5 {[%clk 0:02:44]} 17. b3 {[%clk 0:02:39]}  Rab8 {[%clk 0:02:44]} 18. Bf4 {[%clk 0:02:22]}  Rb7 {[%clk 0:02:41]} 19. Ne5 {[%clk 0:02:13]}  bxc4 {[%clk 0:02:36]} 20. bxc4 {[%clk 0:02:13]}  Bb4 {[%clk 0:02:26]} 21. Red1 {[%clk 0:02:06]}  Nd5 {[%clk 0:02:26]} 22. Qf3 {[%clk 0:01:42]}  Nxf4 {[%clk 0:02:22]} 23. Qxf4 {[%clk 0:01:43]}  Bd6 {[%clk 0:02:21]} 24. Qe4 {[%clk 0:01:35]}  Rc8 {[%clk 0:02:12]} 25. c5 {[%clk 0:01:24]}  Bxe5 {[%clk 0:02:11]} 26. dxe5 {[%clk 0:01:25]}  Rb5 {[%clk 0:02:05]} 27. Qe3 {[%clk 0:01:05]}  Qa5 {[%clk 0:01:47]} 28. Rac1 {[%clk 0:00:46]}  Qxa2 {[%clk 0:01:40]} 29. Rd7 {[%clk 0:00:46]}  h6 {[%clk 0:01:33]} 30. Qf3 {[%clk 0:00:42]}  Rf8 {[%clk 0:01:20]} 31. Qxc6 {[%clk 0:00:42]}  Qb2 {[%clk 0:01:09]} 32. Rf1 {[%clk 0:00:42]}  a5 {[%clk 0:01:07]} 33. Qd6 {[%clk 0:00:34]}  a4 {[%clk 0:01:06]} 34. Ra7 {[%clk 0:00:23]}  Qc3 {[%clk 0:00:55]} 35. Rc7 {[%clk 0:00:12]}  a3 {[%clk 0:00:54]} 36. Rd1 {[%clk 0:00:13]}  a2 {[%clk 0:00:52]} 37. Qxf8+ {[%clk 0:00:12]}  Kh7 {[%clk 0:00:47]} 38. Qxf7 {[%clk 0:00:10]}  Qxe5 {[%clk 0:00:45]} 39. Ra7 {[%clk 0:00:04]}  Rb1 {[%clk 0:00:41]} 40. Qd7 {[%clk 0:00:03]}  a1=Q {[%clk 0:00:35]} 41. Rxa1 {[%clk 0:00:04]}  Rxa1 {[%clk 0:00:35]} 42. c6 {[%clk 0:00:05]}  Rxd1+ {[%clk 0:00:20]} 43. Qxd1 {[%clk 0:00:06]}  Qc3 {[%clk 0:00:19]} 44. Qb1+ {[%clk 0:00:06]}  Kh8 {[%clk 0:00:17]} 45. Qb8+ {[%clk 0:00:06]}  Kh7 {[%clk 0:00:18]} 46. c7 {[%clk 0:00:06]}  Qe1+ {[%clk 0:00:18]} 47. Kh2 {[%clk 0:00:07]}  Qe5+ {[%clk 0:00:15]} 48. g3 {[%clk 0:00:07]}  Qd4 {[%clk 0:00:10]} 49. Kg2 {[%clk 0:00:05]}  Qe4+ {[%clk 0:00:09]} 50. Kh2 {[%clk 0:00:04]}  Qd4 {[%clk 0:00:09]} 51. Kg1 {[%clk 0:00:04]}  Qd1+ {[%clk 0:00:08]} 52. Kg2 {[%clk 0:00:05]}  Qd5+ {[%clk 0:00:08]} 53. Kh2 {[%clk 0:00:05]}  Qd4 {[%clk 0:00:08]} 1/2-1/2


[Site "https://www.chess.com"]

[Event "Titled Tuesday Blitz December 06 Late 2022"]
[White "Kollars, Dmitrij"]
[Black "Maksimovic, Bojan"]
[WhiteFideId "12909572"]
[BlackFideId "14408120"]
[WhiteElo "2584"]
[BlackElo "2462"]
[Result "1-0"]
[Round "09"]
[TimeControl "180+1"]
[Date "2022.12.06"]
[WhiteClock "0:02:19"]
[BlackClock "0:01:01"]

1. e4 {[%clk 0:02:42]}  c5 {[%clk 0:02:58]} 2. Nf3 {[%clk 0:02:40]}  e6 {[%clk 0:02:59]} 3. c3 {[%clk 0:02:40]}  d5 {[%clk 0:02:58]} 4. exd5 {[%clk 0:02:41]}  Qxd5 {[%clk 0:02:58]} 5. d4 {[%clk 0:02:41]}  Nf6 {[%clk 0:02:56]} 6. Na3 {[%clk 0:02:42]}  Nc6 {[%clk 0:02:54]} 7. Nb5 {[%clk 0:02:42]}  Qd8 {[%clk 0:02:53]} 8. dxc5 {[%clk 0:02:42]}  Bxc5 {[%clk 0:02:50]} 9. Qxd8+ {[%clk 0:02:41]}  Kxd8 {[%clk 0:02:48]} 10. b4 {[%clk 0:02:36]}  Bb6 {[%clk 0:02:40]} 11. a4 {[%clk 0:02:29]}  a6 {[%clk 0:01:55]} 12. Nd6 {[%clk 0:02:29]}  Ke7 {[%clk 0:01:53]} 13. Nc4 {[%clk 0:02:28]}  Bc7 {[%clk 0:01:46]} 14. b5 {[%clk 0:02:28]}  axb5 {[%clk 0:01:14]} 15. Ba3+ {[%clk 0:02:28]}  Ke8 {[%clk 0:01:13]} 16. axb5 {[%clk 0:02:27]}  Nb8 {[%clk 0:01:09]} 17. b6 {[%clk 0:02:19]}  Bd8 {[%clk 0:01:01]} 18. Nd6+ {[%clk 0:02:19]} 1-0


[Site "https://www.chess.com"]

[Event "Titled Tuesday Blitz December 06 Late 2022"]
[White "Kovacevic, Radmila"]
[Black "Bogaudinov, Rushan"]
[WhiteFideId "933171"]
[BlackFideId "4129288"]
[WhiteElo "2244"]
[BlackElo "2028"]
[Result "1-0"]
[Round "09"]
[TimeControl "180+1"]
[Date "2022.12.07"]
[WhiteClock "0:00:03"]
[BlackClock "0:00:36"]

1. e4 {[%clk 0:02:57]}  a6 {[%clk 0:02:35]} 2. d4 {[%clk 0:02:56]}  e6 {[%clk 0:02:34]} 3. c4 {[%clk 0:02:53]}  Nf6 {[%clk 0:02:33]} 4. Bd3 {[%clk 0:02:50]}  b5 {[%clk 0:02:31]} 5. e5 {[%clk 0:02:50]}  bxc4 {[%clk 0:02:29]} 6. exf6 {[%clk 0:02:43]}  cxd3 {[%clk 0:02:28]} 7. fxg7 {[%clk 0:02:42]}  Bxg7 {[%clk 0:02:29]} 8. Qxd3 {[%clk 0:02:39]}  Bb7 {[%clk 0:02:28]} 9. Nf3 {[%clk 0:02:33]}  Qf6 {[%clk 0:02:25]} 10. Nbd2 {[%clk 0:02:20]}  Nc6 {[%clk 0:02:20]} 11. d5 {[%clk 0:01:54]}  Ne5 {[%clk 0:02:17]} 12. Nxe5 {[%clk 0:01:45]}  Qxe5+ {[%clk 0:02:18]} 13. Qe2 {[%clk 0:01:02]}  Qxe2+ {[%clk 0:02:16]} 14. Kxe2 {[%clk 0:01:03]}  Bxd5 {[%clk 0:02:16]} 15. f3 {[%clk 0:01:01]}  Rb8 {[%clk 0:02:16]} 16. Kd3 {[%clk 0:00:46]}  h5 {[%clk 0:02:13]} 17. Kc2 {[%clk 0:00:40]}  h4 {[%clk 0:02:12]} 18. Re1 {[%clk 0:00:37]}  h3 {[%clk 0:02:11]} 19. g3 {[%clk 0:00:37]}  Bd4 {[%clk 0:02:06]} 20. Ne4 {[%clk 0:00:26]}  f5 {[%clk 0:02:03]} 21. Ng5 {[%clk 0:00:21]}  Ke7 {[%clk 0:01:51]} 22. Rd1 {[%clk 0:00:17]}  Bf6 {[%clk 0:01:46]} 23. Rf1 {[%clk 0:00:15]}  Rbg8 {[%clk 0:01:42]} 24. f4 {[%clk 0:00:14]}  e5 {[%clk 0:01:35]} 25. Bd2 {[%clk 0:00:13]}  e4 {[%clk 0:01:36]} 26. Bc3 {[%clk 0:00:11]}  Bxc3 {[%clk 0:01:32]} 27. Kxc3 {[%clk 0:00:12]}  Bc6 {[%clk 0:01:28]} 28. b3 {[%clk 0:00:11]}  Bb5 {[%clk 0:01:18]} 29. Rfe1 {[%clk 0:00:11]}  c5 {[%clk 0:01:18]} 30. Rad1 {[%clk 0:00:10]}  Bd3 {[%clk 0:01:18]} 31. Rxd3 {[%clk 0:00:10]}  Kd8 {[%clk 0:01:15]} 32. Rd5 {[%clk 0:00:10]}  Ke7 {[%clk 0:01:07]} 33. Rxf5 {[%clk 0:00:10]}  d6 {[%clk 0:01:06]} 34. Rxe4+ {[%clk 0:00:10]}  Kd7 {[%clk 0:01:07]} 35. Rf7+ {[%clk 0:00:09]}  Kc6 {[%clk 0:01:06]} 36. Rf6 {[%clk 0:00:10]}  Kd5 {[%clk 0:01:00]} 37. Ree6 {[%clk 0:00:10]}  Rd8 {[%clk 0:00:59]} 38. Ne4 {[%clk 0:00:10]}  Rhe8 {[%clk 0:00:58]} 39. Rxe8 {[%clk 0:00:08]}  Rxe8 {[%clk 0:00:57]} 40. Nxd6 {[%clk 0:00:08]}  Re2 {[%clk 0:00:56]} 41. Nc4 {[%clk 0:00:08]}  Rxh2 {[%clk 0:00:52]} 42. Rd6+ {[%clk 0:00:08]}  Ke4 {[%clk 0:00:52]} 43. Rd1 {[%clk 0:00:04]}  Rxa2 {[%clk 0:00:50]} 44. Rh1 {[%clk 0:00:04]}  h2 {[%clk 0:00:49]} 45. Nd2+ {[%clk 0:00:04]}  Kf5 {[%clk 0:00:43]} 46. Rxh2 {[%clk 0:00:05]}  Kg4 {[%clk 0:00:44]} 47. Rg2 {[%clk 0:00:05]}  Ra1 {[%clk 0:00:42]} 48. Kc4 {[%clk 0:00:04]}  Rc1+ {[%clk 0:00:41]} 49. Kd5 {[%clk 0:00:04]}  Rc2 {[%clk 0:00:40]} 50. Ke5 {[%clk 0:00:03]}  Kh3 {[%clk 0:00:39]} 51. Re2 {[%clk 0:00:01]}  Kxg3 {[%clk 0:00:38]} 52. Ne4+ {[%clk 0:00:02]}  Kf3 {[%clk 0:00:36]} 53. Rxc2 {[%clk 0:00:03]} 1-0


[Site "https://www.chess.com"]

[Event "Titled Tuesday Blitz December 06 Late 2022"]
[White "Lewicki, Miroslaw"]
[Black "Yurasova, Daria"]
[WhiteFideId "1113380"]
[BlackFideId "34146919"]
[WhiteElo "2191"]
[BlackElo "2098"]
[Result "1-0"]
[Round "09"]
[TimeControl "180+1"]
[Date "2022.12.06"]
[WhiteClock "0:00:09"]
[BlackClock "0:00:08"]

1. f3 {[%clk 0:03:00]}  d5 {[%clk 0:02:59]} 2. Kf2 {[%clk 0:03:01]}  Nf6 {[%clk 0:02:58]} 3. g3 {[%clk 0:03:01]}  e5 {[%clk 0:02:57]} 4. Kg2 {[%clk 0:03:02]}  Bd6 {[%clk 0:02:57]} 5. b3 {[%clk 0:03:01]}  O-O {[%clk 0:02:58]} 6. Bb2 {[%clk 0:03:02]}  c5 {[%clk 0:02:58]} 7. d3 {[%clk 0:02:56]}  Nc6 {[%clk 0:02:58]} 8. e3 {[%clk 0:02:54]}  Bf5 {[%clk 0:02:54]} 9. Nd2 {[%clk 0:02:53]}  Bg6 {[%clk 0:02:53]} 10. Nh3 {[%clk 0:02:51]}  e4 {[%clk 0:02:53]} 11. dxe4 {[%clk 0:02:46]}  dxe4 {[%clk 0:02:53]} 12. f4 {[%clk 0:02:45]}  Bc7 {[%clk 0:02:41]} 13. Bc4 {[%clk 0:02:13]}  a6 {[%clk 0:02:37]} 14. a4 {[%clk 0:02:09]}  Rb8 {[%clk 0:02:14]} 15. Re1 {[%clk 0:01:54]}  b5 {[%clk 0:02:08]} 16. axb5 {[%clk 0:01:54]}  axb5 {[%clk 0:02:09]} 17. Bf1 {[%clk 0:01:54]}  Ba5 {[%clk 0:01:54]} 18. c3 {[%clk 0:01:49]}  Nd5 {[%clk 0:01:48]} 19. Qc2 {[%clk 0:01:46]}  Qc8 {[%clk 0:01:22]} 20. Nf2 {[%clk 0:01:42]}  Re8 {[%clk 0:01:02]} 21. c4 {[%clk 0:00:49]}  Ndb4 {[%clk 0:00:48]} 22. Qc3 {[%clk 0:00:49]}  f6 {[%clk 0:00:34]} 23. cxb5 {[%clk 0:00:48]}  Nd3 {[%clk 0:00:23]} 24. Rxa5 {[%clk 0:00:48]}  Nxa5 {[%clk 0:00:22]} 25. Bxd3 {[%clk 0:00:38]}  exd3 {[%clk 0:00:21]} 26. Qxa5 {[%clk 0:00:38]}  Qb7+ {[%clk 0:00:09]} 27. e4 {[%clk 0:00:38]}  f5 {[%clk 0:00:09]} 28. Qa6 {[%clk 0:00:38]}  Qf7 {[%clk 0:00:06]} 29. e5 {[%clk 0:00:28]}  Qd5+ {[%clk 0:00:06]} 30. Kg1 {[%clk 0:00:29]}  Ra8 {[%clk 0:00:04]} 31. Qc6 {[%clk 0:00:26]}  Qxc6 {[%clk 0:00:04]} 32. bxc6 {[%clk 0:00:26]}  Rec8 {[%clk 0:00:03]} 33. Nxd3 {[%clk 0:00:24]}  Rxc6 {[%clk 0:00:03]} 34. Nc4 {[%clk 0:00:19]}  Bf7 {[%clk 0:00:02]} 35. Rc1 {[%clk 0:00:14]}  Rd8 {[%clk 0:00:01]} 36. e6 {[%clk 0:00:06]}  Bxe6 {[%clk 0:00:01]} 37. Nde5 {[%clk 0:00:07]}  Rcc8 {[%clk 0:00:02]} 38. Ba3 {[%clk 0:00:07]}  Rb8 {[%clk 0:00:02]} 39. Nc6 {[%clk 0:00:06]}  Bxc4 {[%clk 0:00:01]} 40. Nxd8 {[%clk 0:00:07]}  Rxd8 {[%clk 0:00:01]} 41. Rxc4 {[%clk 0:00:06]}  Rd3 {[%clk 0:00:02]} 42. Bxc5 {[%clk 0:00:06]}  Rxb3 {[%clk 0:00:03]} 43. Bd4 {[%clk 0:00:07]}  Kf7 {[%clk 0:00:02]} 44. Rc7+ {[%clk 0:00:07]}  Ke6 {[%clk 0:00:03]} 45. Rxg7 {[%clk 0:00:07]}  Rb1+ {[%clk 0:00:04]} 46. Kg2 {[%clk 0:00:08]}  Kd5 {[%clk 0:00:05]} 47. Be5 {[%clk 0:00:08]}  Ke4 {[%clk 0:00:06]} 48. Rxh7 {[%clk 0:00:08]}  Rd1 {[%clk 0:00:06]} 49. Rc7 {[%clk 0:00:08]}  Rd2+ {[%clk 0:00:06]} 50. Kh3 {[%clk 0:00:08]}  Kf3 {[%clk 0:00:07]} 51. Rc3+ {[%clk 0:00:08]}  Ke4 {[%clk 0:00:08]} 52. g4 {[%clk 0:00:09]}  Kd5 {[%clk 0:00:08]} 53. gxf5 {[%clk 0:00:09]} 1-0


[Site "https://www.chess.com"]

[Event "Titled Tuesday Blitz December 06 Late 2022"]
[White "Mazurkiewicz, Michal"]
[Black "Fernandez De La Vara, Arnaldo"]
[WhiteFideId "1124943"]
[BlackFideId "3518388"]
[WhiteElo "2081"]
[BlackElo "2387"]
[Result "1-0"]
[Round "09"]
[TimeControl "180+1"]
[Date "2022.12.07"]
[WhiteClock "0:00:05"]
[BlackClock "0:00:01"]

1. e4 {[%clk 0:03:00]}  c5 {[%clk 0:03:00]} 2. Nf3 {[%clk 0:03:00]}  e6 {[%clk 0:03:01]} 3. d3 {[%clk 0:02:59]}  Nc6 {[%clk 0:03:00]} 4. g3 {[%clk 0:02:59]}  g6 {[%clk 0:03:00]} 5. Bg2 {[%clk 0:02:58]}  Bg7 {[%clk 0:03:01]} 6. O-O {[%clk 0:02:59]}  Nge7 {[%clk 0:03:01]} 7. Re1 {[%clk 0:02:59]}  d5 {[%clk 0:02:59]} 8. Nbd2 {[%clk 0:02:59]}  O-O {[%clk 0:02:59]} 9. e5 {[%clk 0:02:58]}  f6 {[%clk 0:02:55]} 10. exf6 {[%clk 0:02:57]}  Bxf6 {[%clk 0:02:56]} 11. c3 {[%clk 0:02:46]}  g5 {[%clk 0:02:48]} 12. Nb3 {[%clk 0:02:40]}  g4 {[%clk 0:02:30]} 13. Ng5 {[%clk 0:02:38]}  e5 {[%clk 0:02:25]} 14. Nxc5 {[%clk 0:02:01]}  Qd6 {[%clk 0:02:24]} 15. d4 {[%clk 0:01:46]}  h6 {[%clk 0:01:43]} 16. dxe5 {[%clk 0:01:44]}  Bxe5 {[%clk 0:01:43]} 17. Nd3 {[%clk 0:00:59]}  Bg7 {[%clk 0:01:01]} 18. Bf4 {[%clk 0:00:30]}  Qg6 {[%clk 0:00:57]} 19. Ne5 {[%clk 0:00:26]}  Nxe5 {[%clk 0:00:50]} 20. Bxe5 {[%clk 0:00:26]}  Qxg5 {[%clk 0:00:50]} 21. Bd6 {[%clk 0:00:19]}  Bf6 {[%clk 0:00:40]} 22. Bxd5+ {[%clk 0:00:02]}  Kg7 {[%clk 0:00:33]} 23. Bf4 {[%clk 0:00:01]}  Qg6 {[%clk 0:00:22]} 24. Be4 {[%clk 0:00:02]}  Bf5 {[%clk 0:00:16]} 25. Bxb7 {[%clk 0:00:02]}  Rad8 {[%clk 0:00:15]} 26. Qb3 {[%clk 0:00:03]}  h5 {[%clk 0:00:06]} 27. Qa3 {[%clk 0:00:03]}  Qf7 {[%clk 0:00:05]} 28. Bg2 {[%clk 0:00:02]}  Ng6 {[%clk 0:00:05]} 29. Qa6 {[%clk 0:00:02]}  Nxf4 {[%clk 0:00:04]} 30. gxf4 {[%clk 0:00:02]}  Kh7 {[%clk 0:00:02]} 31. Rad1 {[%clk 0:00:03]}  Rxd1 {[%clk 0:00:02]} 32. Rxd1 {[%clk 0:00:04]}  Rd8 {[%clk 0:00:02]} 33. Rf1 {[%clk 0:00:05]}  Bg7 {[%clk 0:00:01]} 34. Qb7 {[%clk 0:00:05]} 1-0


[Site "https://www.chess.com"]

[Event "Titled Tuesday Blitz December 06 Late 2022"]
[White "Melkumyan, Hrant"]
[Black "Andreikin, Dmitry"]
[WhiteFideId "13302485"]
[BlackFideId "4158814"]
[WhiteElo "2604"]
[BlackElo "2735"]
[Result "0-1"]
[Round "09"]
[TimeControl "180+1"]
[Date "2022.12.06"]
[WhiteClock "0:00:05"]
[BlackClock "0:00:08"]

1. d4 {[%clk 0:03:00]}  d5 {[%clk 0:03:00]} 2. c4 {[%clk 0:03:01]}  e6 {[%clk 0:03:00]} 3. Nf3 {[%clk 0:02:59]}  a6 {[%clk 0:03:01]} 4. cxd5 {[%clk 0:02:53]}  exd5 {[%clk 0:03:01]} 5. Nc3 {[%clk 0:02:54]}  Nf6 {[%clk 0:03:01]} 6. Bg5 {[%clk 0:02:51]}  Be6 {[%clk 0:03:00]} 7. e3 {[%clk 0:02:52]}  Nbd7 {[%clk 0:03:01]} 8. h3 {[%clk 0:02:50]}  Bd6 {[%clk 0:02:58]} 9. Bd3 {[%clk 0:02:46]}  c6 {[%clk 0:02:58]} 10. O-O {[%clk 0:02:44]}  O-O {[%clk 0:02:58]} 11. Qc2 {[%clk 0:02:38]}  Qb8 {[%clk 0:02:53]} 12. Ne2 {[%clk 0:02:38]}  Re8 {[%clk 0:02:51]} 13. Bf4 {[%clk 0:02:37]}  Nf8 {[%clk 0:02:48]} 14. b4 {[%clk 0:02:32]}  Ng6 {[%clk 0:02:45]} 15. Bxd6 {[%clk 0:02:32]}  Qxd6 {[%clk 0:02:46]} 16. Qc5 {[%clk 0:02:29]}  Qd7 {[%clk 0:02:39]} 17. Ne5 {[%clk 0:02:19]}  Qc8 {[%clk 0:02:11]} 18. f4 {[%clk 0:02:15]}  Bf5 {[%clk 0:02:10]} 19. Bxf5 {[%clk 0:02:07]}  Qxf5 {[%clk 0:02:11]} 20. Ng3 {[%clk 0:02:08]}  Qc8 {[%clk 0:02:04]} 21. Qc2 {[%clk 0:02:06]}  Qd8 {[%clk 0:01:45]} 22. a4 {[%clk 0:02:00]}  Ne7 {[%clk 0:01:41]} 23. Rab1 {[%clk 0:01:54]}  Nc8 {[%clk 0:01:31]} 24. b5 {[%clk 0:01:51]}  cxb5 {[%clk 0:01:32]} 25. axb5 {[%clk 0:01:52]}  a5 {[%clk 0:01:31]} 26. Rfc1 {[%clk 0:01:30]}  Nd6 {[%clk 0:01:13]} 27. b6 {[%clk 0:01:28]}  a4 {[%clk 0:01:11]} 28. Ra1 {[%clk 0:01:17]}  Qxb6 {[%clk 0:01:01]} 29. Rxa4 {[%clk 0:01:12]}  Rac8 {[%clk 0:01:01]} 30. Qb1 {[%clk 0:01:08]}  Rxc1+ {[%clk 0:00:46]} 31. Qxc1 {[%clk 0:01:09]}  h5 {[%clk 0:00:46]} 32. Ra1 {[%clk 0:00:59]}  h4 {[%clk 0:00:42]} 33. Nf1 {[%clk 0:00:59]}  Rc8 {[%clk 0:00:40]} 34. Qe1 {[%clk 0:00:57]}  Nf5 {[%clk 0:00:38]} 35. Rb1 {[%clk 0:00:56]}  Qa6 {[%clk 0:00:36]} 36. Nf3 {[%clk 0:00:56]}  Rc2 {[%clk 0:00:25]} 37. Rc1 {[%clk 0:00:47]}  Rxc1 {[%clk 0:00:17]} 38. Qxc1 {[%clk 0:00:47]}  Qc4 {[%clk 0:00:17]} 39. Qb1 {[%clk 0:00:43]}  Qc8 {[%clk 0:00:13]} 40. Ng5 {[%clk 0:00:36]}  g6 {[%clk 0:00:13]} 41. Qb6 {[%clk 0:00:23]}  Kg7 {[%clk 0:00:13]} 42. Qb4 {[%clk 0:00:24]}  Qc7 {[%clk 0:00:09]} 43. Qb5 {[%clk 0:00:23]}  Qc6 {[%clk 0:00:08]} 44. Qb4 {[%clk 0:00:23]}  b5 {[%clk 0:00:08]} 45. Qa3 {[%clk 0:00:15]}  Qb7 {[%clk 0:00:08]} 46. Qb4 {[%clk 0:00:16]}  Qa6 {[%clk 0:00:05]} 47. Qc3 {[%clk 0:00:16]}  Qa7 {[%clk 0:00:04]} 48. Qb4 {[%clk 0:00:12]}  Qb7 {[%clk 0:00:04]} 49. Kh2 {[%clk 0:00:12]}  Ne4 {[%clk 0:00:04]} 50. Nxe4 {[%clk 0:00:09]}  dxe4 {[%clk 0:00:05]} 51. Kg1 {[%clk 0:00:10]}  Ne7 {[%clk 0:00:05]} 52. Nd2 {[%clk 0:00:01]}  Nd5 {[%clk 0:00:05]} 53. Qb3 {[%clk 0:00:02]}  Nf6 {[%clk 0:00:06]} 54. Qb2 {[%clk 0:00:02]}  b4 {[%clk 0:00:06]} 55. d5 {[%clk 0:00:02]}  Qxd5 {[%clk 0:00:05]} 56. Qxb4 {[%clk 0:00:02]}  Qd3 {[%clk 0:00:06]} 57. Qd4 {[%clk 0:00:03]}  Qxd4 {[%clk 0:00:05]} 58. exd4 {[%clk 0:00:04]}  e3 {[%clk 0:00:06]} 59. Nc4 {[%clk 0:00:04]}  Nd5 {[%clk 0:00:06]} 60. Kf1 {[%clk 0:00:04]}  Kf6 {[%clk 0:00:07]} 61. Ke2 {[%clk 0:00:04]}  Nxf4+ {[%clk 0:00:06]} 62. Kf3 {[%clk 0:00:02]}  e2 {[%clk 0:00:06]} 63. Kf2 {[%clk 0:00:03]}  g5 {[%clk 0:00:05]} 64. Ne5 {[%clk 0:00:02]}  e1=Q+ {[%clk 0:00:05]} 65. Kxe1 {[%clk 0:00:02]}  Nxg2+ {[%clk 0:00:05]} 66. Kf2 {[%clk 0:00:03]}  Nf4 {[%clk 0:00:06]} 67. Ng4+ {[%clk 0:00:02]}  Kf5 {[%clk 0:00:06]} 68. Ne3+ {[%clk 0:00:02]}  Ke4 {[%clk 0:00:07]} 69. d5 {[%clk 0:00:02]}  Nxh3+ {[%clk 0:00:06]} 70. Kf1 {[%clk 0:00:02]}  Kxe3 {[%clk 0:00:07]} 71. d6 {[%clk 0:00:03]}  Nf4 {[%clk 0:00:07]} 72. d7 {[%clk 0:00:04]}  Ne6 {[%clk 0:00:08]} 73. d8=Q {[%clk 0:00:05]}  Nxd8 {[%clk 0:00:08]} 0-1


[Site "https://www.chess.com"]

[Event "Titled Tuesday Blitz December 06 Late 2022"]
[White "Moral Garcia, Serafin"]
[Black "Jimenez Almeida, Luis David"]
[WhiteFideId "2201925"]
[BlackFideId "22242244"]
[WhiteElo "2259"]
[BlackElo "2158"]
[Result "0-1"]
[Round "09"]
[TimeControl "180+1"]
[Date "2022.12.07"]
[WhiteClock "0:00:19"]
[BlackClock "0:00:30"]

1. Nf3 {[%clk 0:02:53]}  g6 {[%clk 0:02:58]} 2. g3 {[%clk 0:02:48]}  Bg7 {[%clk 0:02:59]} 3. Bg2 {[%clk 0:02:48]}  f5 {[%clk 0:02:58]} 4. d4 {[%clk 0:02:46]}  Nf6 {[%clk 0:02:58]} 5. O-O {[%clk 0:02:46]}  O-O {[%clk 0:02:58]} 6. b3 {[%clk 0:02:45]}  d6 {[%clk 0:02:57]} 7. Bb2 {[%clk 0:02:45]}  a5 {[%clk 0:02:56]} 8. a3 {[%clk 0:02:44]}  c6 {[%clk 0:02:55]} 9. Nbd2 {[%clk 0:02:44]}  Qe8 {[%clk 0:02:54]} 10. Re1 {[%clk 0:02:40]}  Ne4 {[%clk 0:02:47]} 11. c4 {[%clk 0:02:38]}  Nd7 {[%clk 0:02:45]} 12. Nxe4 {[%clk 0:02:34]}  fxe4 {[%clk 0:02:45]} 13. Nd2 {[%clk 0:02:34]}  d5 {[%clk 0:02:46]} 14. f3 {[%clk 0:02:28]}  e5 {[%clk 0:02:19]} 15. fxe4 {[%clk 0:02:26]}  exd4 {[%clk 0:02:14]} 16. Qc2 {[%clk 0:02:13]}  dxe4 {[%clk 0:02:05]} 17. Qxe4 {[%clk 0:02:04]}  Qxe4 {[%clk 0:01:50]} 18. Nxe4 {[%clk 0:02:01]}  a4 {[%clk 0:01:44]} 19. b4 {[%clk 0:01:59]}  Ne5 {[%clk 0:01:41]} 20. Nd6 {[%clk 0:01:42]}  Be6 {[%clk 0:01:33]} 21. c5 {[%clk 0:01:30]}  Nc4 {[%clk 0:01:23]} 22. Nxc4 {[%clk 0:01:29]}  Bxc4 {[%clk 0:01:24]} 23. Rad1 {[%clk 0:01:21]}  Rad8 {[%clk 0:01:21]} 24. Be4 {[%clk 0:01:14]}  Bb3 {[%clk 0:01:16]} 25. Rb1 {[%clk 0:00:58]}  Bh6 {[%clk 0:01:15]} 26. Bc1 {[%clk 0:00:58]}  Be3+ {[%clk 0:01:02]} 27. Bxe3 {[%clk 0:00:58]}  dxe3 {[%clk 0:01:03]} 28. Bd3 {[%clk 0:00:56]}  Kf7 {[%clk 0:00:54]} 29. Rf1+ {[%clk 0:00:56]}  Ke6 {[%clk 0:00:53]} 30. Rb2 {[%clk 0:00:36]}  Ke5 {[%clk 0:00:51]} 31. Rxf8 {[%clk 0:00:31]}  Rxf8 {[%clk 0:00:52]} 32. Bc2 {[%clk 0:00:29]}  Kd4 {[%clk 0:00:40]} 33. Bxb3 {[%clk 0:00:29]}  Kc3 {[%clk 0:00:40]} 34. Bxa4 {[%clk 0:00:27]}  Kxb2 {[%clk 0:00:40]} 35. b5 {[%clk 0:00:28]}  cxb5 {[%clk 0:00:37]} 36. Bxb5 {[%clk 0:00:27]}  Kxa3 {[%clk 0:00:37]} 37. c6 {[%clk 0:00:28]}  bxc6 {[%clk 0:00:32]} 38. Bxc6 {[%clk 0:00:28]}  Rf2 {[%clk 0:00:32]} 39. Bb5 {[%clk 0:00:23]}  h6 {[%clk 0:00:30]} 40. h4 {[%clk 0:00:22]}  g5 {[%clk 0:00:30]} 41. hxg5 {[%clk 0:00:22]}  hxg5 {[%clk 0:00:31]} 42. Bc4 {[%clk 0:00:18]}  Kb4 {[%clk 0:00:30]} 43. Bd3 {[%clk 0:00:18]}  Kc3 {[%clk 0:00:30]} 44. Ba6 {[%clk 0:00:19]}  Kd2 {[%clk 0:00:31]} 45. Bc4 {[%clk 0:00:19]}  Ke1 {[%clk 0:00:30]} 0-1


[Site "https://www.chess.com"]

[Event "Titled Tuesday Blitz December 06 Late 2022"]
[White "Nasuta, Grzegorz"]
[Black "Eljanov, Pavel"]
[WhiteFideId "1141686"]
[BlackFideId "14102951"]
[WhiteElo "2441"]
[BlackElo "2598"]
[Result "0-1"]
[Round "09"]
[TimeControl "180+1"]
[Date "2022.12.06"]
[WhiteClock "0:00:58"]
[BlackClock "0:01:32"]

1. e4 {[%clk 0:03:00]}  c6 {[%clk 0:02:56]} 2. d4 {[%clk 0:02:58]}  d5 {[%clk 0:02:57]} 3. e5 {[%clk 0:02:59]}  Bf5 {[%clk 0:02:56]} 4. Nf3 {[%clk 0:02:58]}  e6 {[%clk 0:02:57]} 5. Be2 {[%clk 0:02:58]}  Nd7 {[%clk 0:02:57]} 6. O-O {[%clk 0:02:58]}  a5 {[%clk 0:02:58]} 7. a4 {[%clk 0:02:48]}  f6 {[%clk 0:02:57]} 8. Nbd2 {[%clk 0:02:26]}  fxe5 {[%clk 0:02:39]} 9. Nxe5 {[%clk 0:02:26]}  Nxe5 {[%clk 0:02:37]} 10. dxe5 {[%clk 0:02:27]}  Bc5 {[%clk 0:02:32]} 11. Nb3 {[%clk 0:02:26]}  Bb6 {[%clk 0:02:28]} 12. c3 {[%clk 0:02:09]}  Ne7 {[%clk 0:02:21]} 13. Nd4 {[%clk 0:02:08]}  O-O {[%clk 0:02:18]} 14. g4 {[%clk 0:02:01]}  Bxd4 {[%clk 0:02:16]} 15. cxd4 {[%clk 0:02:02]}  Be4 {[%clk 0:02:13]} 16. f3 {[%clk 0:02:02]}  Bg6 {[%clk 0:02:13]} 17. Qb3 {[%clk 0:01:59]}  c5 {[%clk 0:02:01]} 18. dxc5 {[%clk 0:01:57]}  Nc6 {[%clk 0:02:02]} 19. Qe3 {[%clk 0:01:51]}  d4 {[%clk 0:01:57]} 20. Qb3 {[%clk 0:01:50]}  d3 {[%clk 0:01:52]} 21. Bd1 {[%clk 0:01:09]}  d2 {[%clk 0:01:52]} 22. Qxe6+ {[%clk 0:01:09]}  Kh8 {[%clk 0:01:51]} 23. Qd6 {[%clk 0:01:06]}  dxc1=Q {[%clk 0:01:48]} 24. Rxc1 {[%clk 0:01:06]}  Qg5 {[%clk 0:01:47]} 25. Rc3 {[%clk 0:00:59]}  Rad8 {[%clk 0:01:45]} 26. Qe6 {[%clk 0:00:58]}  Nxe5 {[%clk 0:01:32]} 0-1


[Site "https://www.chess.com"]